bitfinex-derivatives/quotes_ETHF0:USTF0_20260125
["timestamp","ask_amount","ask_price","bid_price","bid_amount"]
[1769379577600,3.80012882,2810.2,2808.8,3.50045465]
[1769379582006,4.719,2810.1,2808.8,3.50045465]
[1769379582608,2.30539195,2810.3,2808.8,3.50045465]
[1769379582810,8.56245365,2810.2,2808.8,3.50045465]
[1769379583010,3.84145365,2810.1,2808.8,3.50045465]
[1769379583203,2.30539195,2810.3,2808.8,3.50045465]
[1769379583404,8.56551031,2810.2,2808.8,3.50045465]
[1769379583603,3.84151031,2810.1,2808.8,3.50045465]
[1769379583809,4.724,2810.2,2808.8,3.50045465]
[1769379584010,3.84151001,2810.1,2808.8,3.50045465]
[1769379584203,4.724,2810.2,2808.8,3.50045465]
[1769379584406,3.84627166,2810.1,2808.8,3.50045465]
[1769379584715,4.01544853,2809.9,2808.8,0.0035979]
[1769379584908,8.57831576,2809.8,2808.8,3.50045465]
[1769379585212,3.84631576,2809.7,2808.8,3.50045465]
[1769379585405,4.732,2809.8,2808.8,3.50045465]
[1769379586405,4.736,2809.8,2808.8,3.50045465]
[1769379587009,2.12727195,2810.0,2808.8,3.50045465]
[1769379587208,4.737,2809.8,2808.8,3.50045465]
[1769379587408,4.738,2809.9,2808.8,3.50045465]
[1769379588111,5.57014206,2809.8,2808.8,0.0035979]
[1769379588311,5.57014206,2809.7,2808.8,0.0035979]
[1769379588512,3.84341966,2809.6,2808.8,0.0035979]
[1769379588704,6.4667224,2809.7,2808.8,0.0035979]
[1769379588909,3.84140569,2809.6,2808.8,0.0035979]
[1769379589110,6.4667224,2809.7,2808.8,0.0035979]
[1769379589310,3.84140365,2809.6,2808.8,0.0035979]
[1769379589616,6.4667224,2809.7,2808.1,3.49685675]
[1769379589807,3.84026154,2809.6,2808.1,3.49685675]
[1769379590010,6.4667224,2809.7,2808.1,3.49685675]
[1769379590214,3.84036792,2809.6,2808.1,3.49685675]
[1769379590414,6.4667224,2809.7,2808.1,3.49685675]
[1769379590617,6.4667224,2809.7,2808.1,3.49939058]
[1769379592714,0.17815,2809.8,2808.1,3.49939058]
[1769379592920,4.77,2809.7,2808.1,3.49939058]
[1769379593508,4.77,2809.7,2808.3,4.38266866]
[1769379595022,4.77,2809.7,2808.4,3.49685675]
[1769379601832,0.17816,2809.6,2808.4,3.49685675]
[1769379602131,0.17816,2809.6,2808.1,0.00253383]
[1769379602132,1.73229646,2809.2,2808.1,0.00253383]
[1769379602428,6.50829646,2809.1,2808.1,0.00253383]
[1769379602928,1.73208019,2808.8,2807.1,4.38266866]
[1769379603133,1.73208019,2808.8,2807.2,3.72172384]
[1769379603918,1.73208019,2808.8,2807.2,3.72502644]
[1769379604126,1.91641124,2808.5,2807.2,0.0033026]
[1769379604323,1.92080441,2808.5,2807.2,0.0033026]
[1769379604524,4.777,2808.4,2807.2,0.0033026]
[1769379604931,4.777,2808.3,2807.2,0.0033026]
[1769379605926,1.75861651,2808.2,2806.6,1.59965525]
[1769379606329,2.04647854,2808.2,2806.6,1.59965525]
[1769379606531,1.80742333,2807.7,2806.6,1.59965525]
[1769379606729,1.80742333,2807.5,2805.9,0.88581191]
[1769379606932,0.20776808,2807.3,2805.9,0.00413323]
[1769379608331,0.20776808,2807.1,2805.9,0.00413323]
[1769379608526,0.18757772,2806.8,2805.2,3.7514098]
[1769379608732,2.089,2806.7,2805.2,3.7514098]
[1769379608939,0.18757772,2806.6,2804.8,3.75347642]
[1769379609437,2.26735,2806.7,2804.8,3.75347642]
[1769379609632,2.26735,2806.7,2804.8,3.75612425]
[1769379610137,2.26835,2806.7,2804.8,3.75612425]
[1769379611545,0.17835,2806.6,2804.8,3.75612425]
[1769379611737,0.18780184,2806.6,2804.8,3.75612425]
[1769379611938,0.17838,2806.2,2804.8,3.75612425]
[1769379612139,0.18146804,2806.2,2804.8,3.75612425]
[1769379612335,0.00308804,2806.2,2804.8,3.75612425]
[1769379612534,0.17839,2806.0,2804.8,0.00264783]
[1769379612743,0.17839,2806.0,2804.8,3.74653751]
[1769379614241,0.00308804,2806.2,2804.8,3.74653751]
[1769379615542,0.00308804,2806.2,2805.0,3.7610862]
[1769379615747,2.09,2806.8,2805.0,3.7610862]
[1769379616555,0.17674785,2807.2,2805.3,3.75137867]
[1769379616751,0.00453747,2807.2,2805.3,3.75137867]
[1769379618256,0.00453747,2807.2,2805.3,3.92980867]
[1769379618844,0.18284747,2807.2,2805.3,3.92980867]
[1769379619048,0.20087402,2807.0,2805.3,3.75137867]
[1769379620555,0.17833,2806.9,2805.3,3.75137867]
[1769379621558,0.17835,2806.6,2805.3,3.75137867]
[1769379621749,0.17835,2806.6,2804.9,3.72897835]
[1769379622152,0.00453747,2807.2,2804.9,3.72897835]
[1769379622153,0.41933355,2806.4,2804.9,3.72897835]
[1769379622357,0.24096355,2806.3,2804.8,0.00264783]
[1769379622758,0.17839,2806.1,2804.8,0.00264783]
[1769379622956,0.17839,2806.1,2803.7,0.17853]
[1769379622957,0.17847,2804.8,2802.6,0.1786]
[1769379623259,2.091,2804.8,2802.7,3.8939106]
[1769379623460,2.091,2804.8,2802.7,3.95598722]
[1769379623959,0.0044592,2804.8,2802.9,3.7153106]
[1769379624656,0.0044592,2804.8,2802.9,5.22502502]
[1769379624848,0.0044592,2804.8,2803.0,3.74719893]
[1769379628257,0.0044592,2804.8,2803.3,3.719814]
[1769379629854,0.43772225,2805.4,2802.7,0.066256]
[1769379629855,0.17843,2805.4,2803.5,3.7194974]
[1769379630765,0.18135664,2805.4,2803.5,3.7194974]
[1769379632267,2.092,2805.3,2803.5,3.7194974]
[1769379632564,0.18135664,2805.4,2803.5,3.7194974]
[1769379635163,0.17839,2806.0,2804.1,3.79476675]
[1769379635558,2.30563195,2806.5,2804.7,3.79476675]
[1769379635763,3.82389949,2806.4,2804.7,3.79476675]
[1769379635966,0.00430851,2806.4,2805.2,3.79476675]
[1769379639373,0.17833,2806.9,2805.2,3.79476675]
[1769379640074,2.092,2807.2,2805.4,3.79476675]
[1769379640274,3.83186174,2807.1,2805.4,3.79476675]
[1769379640472,0.00457246,2807.2,2805.4,3.79476675]
[1769379640777,3.83185752,2807.1,2805.4,3.79476675]
[1769379640976,0.00457246,2807.2,2805.4,3.79476675]
[1769379641177,3.83185657,2807.1,2805.4,3.79476675]
[1769379641476,0.00457246,2807.2,2805.4,3.79476675]
[1769379641677,3.83141911,2807.1,2805.4,3.79476675]
[1769379641870,0.00457246,2807.2,2805.4,3.79476675]
[1769379642067,3.83141894,2807.1,2805.4,3.79476675]
[1769379642271,0.00457246,2807.2,2805.4,3.79476675]
[1769379643466,0.00457246,2807.2,2805.7,3.79476675]
[1769379645677,0.00457246,2807.2,2805.7,3.97317675]
[1769379649874,0.2624223,2807.1,2805.2,3.79476675]
[1769379650088,0.2624223,2806.9,2805.2,3.79476675]
[1769379650274,0.17834,2806.8,2805.2,3.79476675]
[1769379654371,0.17835,2806.7,2805.2,3.79476675]
[1769379657483,10.46479923,2806.9,2805.2,3.79476675]
[1769379657684,3.82623591,2806.8,2805.2,3.79476675]
[1769379657885,10.46479923,2806.9,2805.2,3.79476675]
[1769379658180,0.17837,2806.3,2805.2,3.79476675]
[1769379667688,0.17839,2806.0,2805.2,3.79476675]
[1769379667993,0.17839,2806.0,2804.8,3.83159497]
[1769379668190,0.1784,2805.9,2804.7,0.00418679]
[1769379668390,0.1784,2805.9,2804.7,3.83578176]
[1769379669589,0.17841,2805.7,2804.7,3.83578176]
[1769379669793,0.17842,2805.6,2804.7,0.00418679]
[1769379672195,1.33208819,2804.4,2802.3,6.92152382]
[1769379672391,1.33208819,2803.6,2801.7,3.84861838]
[1769379672592,3.83897529,2803.5,2801.7,3.84861838]
[1769379672785,0.17856,2803.3,2801.7,3.84861838]
[1769379673192,0.18194115,2803.3,2801.7,3.85137276]
[1769379673587,0.17857,2803.1,2801.7,3.85137276]
[1769379673794,0.00338115,2803.3,2801.7,0.00275438]
[1769379673996,0.00338115,2803.3,2800.3,1.61284108]
[1769379673997,1.33208819,2802.1,2800.3,1.61284108]
[1769379674201,1.33208819,2801.0,2799.4,3.84861838]
[1769379674392,0.17875,2800.3,2798.9,3.84861838]
[1769379674593,2.092,2800.2,2797.9,3.84861838]
[1769379674793,0.1788,2799.6,2797.9,3.84861838]
[1769379674993,0.18175523,2799.6,2797.9,3.85163177]
[1769379675299,0.00295523,2799.6,2797.9,3.85163177]
[1769379676094,2.092,2800.7,2798.2,3.85267579]
[1769379676290,1.33208819,2800.4,2798.2,3.85267579]
[1769379676696,0.17867,2801.7,2798.6,3.85267579]
[1769379676892,3.74667,2801.6,2799.1,3.85267579]
[1769379677099,0.1826494,2801.6,2799.1,3.85267579]
[1769379677292,8.266,2801.5,2799.1,3.85267579]
[1769379677695,0.17871,2801.0,2799.1,3.85267579]
[1769379677902,2.093,2800.9,2799.1,3.85267579]
[1769379678297,0.17871,2801.0,2799.1,3.85267579]
[1769379678496,2.093,2800.8,2799.1,3.85267579]
[1769379679000,2.093,2801.1,2799.1,3.85267579]
[1769379679407,5.662,2801.0,2799.1,3.85267579]
[1769379679602,0.17873,2800.7,2799.1,3.85267579]
[1769379680707,2.094,2800.6,2799.1,3.85267579]
[1769379681008,2.27273,2800.6,2798.4,3.85267579]
[1769379681205,0.17873,2800.6,2798.4,3.85267579]
[1769379681407,2.094,2800.5,2798.4,3.85267579]
[1769379681605,0.17873,2800.6,2798.4,3.85267579]
[1769379681801,2.094,2800.5,2798.4,3.85267579]
[1769379682207,0.17873,2800.6,2798.4,3.85267579]
[1769379682414,2.094,2800.5,2798.4,3.85267579]
[1769379682910,0.17873,2800.6,2798.4,3.85267579]
[1769379683108,2.27273,2800.6,2798.4,3.85267579]
[1769379683405,0.17873,2800.6,2798.4,3.85267579]
[1769379684002,0.17874,2800.5,2798.4,3.85267579]
[1769379684199,0.17875,2800.4,2798.4,3.85267579]
[1769379684398,1.33208819,2800.4,2798.4,3.85267579]
[1769379684604,1.33208819,2799.9,2797.9,3.85568918]
[1769379684806,0.1788,2799.6,2797.9,3.85568918]
[1769379685101,0.18328432,2799.6,2797.9,3.85568918]
[1769379685303,2.27828432,2799.6,2797.9,3.85568918]
[1769379685704,2.09948432,2799.6,2797.9,0.00301339]
[1769379686105,0.17884,2799.1,2797.9,0.00301339]
[1769379687211,0.17886,2798.6,2797.9,0.00301339]
[1769379687607,0.00448432,2799.6,2797.9,0.00301339]
[1769379687813,2.095,2799.5,2797.9,0.00301339]
[1769379688409,0.00448432,2799.6,2797.9,3.85568918]
[1769379688915,0.00448432,2799.6,2797.9,4.03459918]
[1769379689113,0.00448432,2799.6,2798.3,3.85267579]
[1769379689721,2.095,2801.3,2798.8,3.85267579]
[1769379689905,0.17872,2800.8,2798.8,3.85267579]
[1769379690110,0.17869,2801.3,2798.8,3.85267579]
[1769379690311,0.17869,2801.3,2798.8,4.03151579]
[1769379690515,0.1787,2801.2,2798.8,4.03151579]
[1769379690818,0.18298616,2801.2,2798.8,4.03151579]
[1769379691313,0.00428616,2801.2,2799.3,3.85267579]
[1769379691512,0.00428616,2801.2,2799.8,3.85267579]
[1769379692311,3.42808819,2802.4,2799.8,3.85267579]
[1769379692513,0.17866,2801.8,2799.8,3.85267579]
[1769379693120,0.17867,2801.7,2799.8,3.85267579]
[1769379693316,0.18127328,2801.7,2799.8,3.85267579]
[1769379694522,0.17867,2801.6,2799.8,3.85267579]
[1769379695222,0.1787,2801.2,2799.8,3.85267579]
[1769379695822,0.00260328,2801.7,2800.1,3.85158237]
[1769379696022,0.00260328,2801.7,2800.1,3.85591584]
[1769379700924,0.00260328,2801.7,2800.2,3.85158237]
[1769379701124,0.17862,2802.4,2800.5,3.85158237]
[1769379701325,2.10793103,2803.0,2800.5,3.85158237]
[1769379701525,3.84047326,2802.9,2800.5,3.85158237]
[1769379701719,0.17861,2802.6,2800.5,4.03032237]
[1769379702115,0.17861,2802.6,2800.7,3.85158237]
[1769379702318,0.18211672,2802.6,2800.7,3.85158237]
[1769379702519,0.18211672,2802.6,2800.7,4.03031237]
[1769379703424,3.84894994,2802.5,2800.2,3.85158237]
[1769379703630,0.17866,2801.8,2800.2,3.85158237]
[1769379703831,0.17867,2801.7,2800.2,3.85158237]
[1769379704629,0.17869,2801.3,2800.2,3.85158237]
[1769379705928,2.10793103,2802.1,2800.2,3.85158237]
[1769379706133,0.17865,2801.9,2800.2,3.85158237]
[1769379707031,0.17866,2801.8,2800.2,3.85158237]
[1769379708334,0.17871,2801.1,2800.1,0.00433347]
[1769379708833,0.17868,2801.4,2800.1,0.00433347]
[1769379709027,3.84181462,2801.3,2800.1,0.00433347]
[1769379709220,0.1787,2801.2,2800.1,0.00433347]
[1769379710331,0.1787,2801.2,2800.1,3.84025561]
[1769379710533,0.17871,2800.9,2800.1,0.00433347]
[1769379711322,0.03132046,2801.3,2800.1,0.00433347]
[1769379711525,0.17873,2800.7,2800.1,0.00433347]
[1769379711722,0.17873,2800.7,2799.1,3.82828683]
[1769379711922,0.17875,2800.4,2799.1,3.82828683]
[1769379712127,0.17875,2800.4,2799.0,1.59634597]
[1769379712128,0.04659109,2800.7,2799.0,1.59634597]
[1769379712333,0.17878,2800.0,2799.0,1.59634597]
[1769379712830,0.1823585,2800.0,2799.0,1.59967308]
[1769379713325,0.1823585,2800.0,2799.0,0.00332711]
[1769379713529,0.17878,2799.9,2799.0,0.00332711]
[1769379715128,0.17878,2799.8,2799.0,0.00332711]
[1769379715332,0.1788,2799.5,2798.0,3.85158237]
[1769379716435,0.17883,2799.1,2798.0,0.00417798]
[1769379716634,0.17883,2799.1,2797.6,3.09844035]
[1769379717630,0.17883,2799.1,2797.6,3.10160523]
[1769379719533,0.1788,2799.6,2797.6,3.10160523]
[1769379719926,0.17881,2799.4,2797.6,3.10160523]
[1769379720534,0.1823485,2800.0,2798.0,3.57246587]
[1769379720934,0.1823485,2800.0,2798.2,3.57246587]
[1769379721133,0.0035785,2800.0,2798.6,3.57246587]
[1769379721436,0.17873,2800.7,2798.8,3.57246587]
[1769379721638,0.17873,2800.6,2798.8,3.57246587]
[1769379721837,0.7414149,2801.1,2798.8,3.57246587]
[1769379722039,0.70271878,2800.9,2798.8,3.57246587]
[1769379722338,0.17879,2799.8,2798.7,3.574]
[1769379722540,0.17879,2799.8,2798.7,7.14646587]
[1769379722838,0.17879,2799.8,2798.8,3.57246587]
[1769379723240,0.17874,2800.5,2798.8,3.57246587]
[1769379723831,0.00372134,2800.9,2798.8,3.57246587]
[1769379724031,0.00372134,2800.9,2798.8,3.75131587]
[1769379724436,0.00372134,2800.9,2799.1,3.8377782]
[1769379724639,0.00372134,2800.9,2799.3,3.8377782]
[1769379724836,0.00372134,2800.9,2799.0,1.33610819]
[1769379724837,0.00372134,2800.9,2799.6,4.0165782]
[1769379725037,0.00372134,2800.9,2799.8,0.17878]
[1769379725344,0.00372134,2800.9,2799.6,0.00425469]
[1769379726140,0.17873,2800.7,2799.6,0.00425469]
[1769379726347,0.17874,2800.5,2799.6,0.00425469]
[1769379729943,0.00372134,2800.9,2799.6,0.00425469]
[1769379730948,0.17875,2800.4,2799.6,0.00425469]
[1769379731537,0.17876,2800.3,2799.6,0.00425469]
[1769379732548,0.17872,2800.8,2799.6,0.00425469]
[1769379732945,0.17874,2800.6,2799.6,4.69e-06]
[1769379733345,0.17874,2800.6,2799.6,3.83778289]
[1769379733651,0.00372134,2800.9,2799.6,3.83778289]
[1769379735551,0.00372134,2800.9,2799.6,4.69e-06]
[1769379736750,0.17875,2800.3,2799.6,4.69e-06]
[1769379739254,0.18243134,2800.9,2799.6,4.69e-06]
[1769379739551,0.17872,2800.8,2799.6,4.69e-06]
[1769379746353,0.51335339,2800.9,2799.6,4.69e-06]
[1769379746562,0.17875,2800.4,2799.6,4.69e-06]
[1769379747357,0.00372134,2800.9,2799.6,4.69e-06]
[1769379747555,0.18243134,2800.9,2799.6,4.69e-06]
[1769379749550,0.17873,2800.7,2799.6,4.69e-06]
[1769379749953,0.00372134,2800.9,2799.7,3.59228933]
[1769379752561,0.18244134,2800.9,2799.7,3.59228933]
[1769379754856,0.00372134,2800.9,2799.7,3.59228933]
[1769379757867,2.10793103,2801.6,2800.1,3.60936808]
[1769379758164,0.17866,2801.8,2800.1,3.60936808]
[1769379758360,3.86879276,2801.7,2800.1,3.60936808]
[1769379758562,0.17866,2801.8,2800.1,3.60936808]
[1769379758762,3.86876265,2801.7,2800.1,3.60936808]
[1769379758964,0.18221912,2801.8,2800.1,3.60936808]
[1769379759162,0.18221912,2801.8,2800.6,3.60936808]
[1769379762369,0.00355912,2801.8,2800.6,3.60936808]
[1769379763469,0.17863,2802.2,2800.6,3.60936808]
[1769379764564,0.18249337,2802.2,2800.6,3.60936808]
[1769379769771,0.18249337,2802.2,2800.8,3.62507914]
[1769379769974,0.00386337,2802.2,2800.1,3.62507914]
[1769379770164,0.17868,2801.5,2800.1,3.62507914]
[1769379770365,0.17869,2801.4,2800.1,3.62507914]
[1769379770571,0.1787,2801.2,2800.1,3.62507914]
[1769379770770,0.17871,2801.0,2799.7,3.62507914]
[1769379770965,0.45215231,2801.7,2799.7,3.62507914]
[1769379771172,0.45215231,2801.4,2799.7,3.62507914]
[1769379771375,0.17873,2800.7,2799.7,3.62507914]
[1769379773972,2.12562629,2801.7,2799.7,3.62507914]
[1769379774176,3.80856022,2801.6,2799.7,3.62507914]
[1769379774382,0.1787,2801.2,2799.7,3.62507914]
[1769379774682,0.1787,2801.1,2799.7,3.62507914]
[1769379778492,2.12562629,2802.0,2800.1,3.63242815]
[1769379778784,0.17867,2801.6,2800.1,3.63242815]
[1769379781680,0.17867,2801.6,2800.6,3.63670344]
[1769379781988,6.54249337,2802.2,2800.6,3.63670344]
[1769379782582,0.18249337,2802.2,2800.6,3.63670344]
[1769379787289,0.18249337,2802.2,2800.6,7.46070344]
[1769379787590,0.18249337,2802.2,2800.7,3.71565369]
[1769379787886,0.18249337,2802.2,2800.8,3.71565369]
[1769379788886,0.00386337,2802.2,2800.8,3.71565369]
[1769379789888,0.00386337,2802.2,2800.8,6.74665369]
[1769379790087,0.00386337,2802.2,2800.9,3.71565369]
[1769379790493,0.00386337,2802.2,2801.1,3.71565369]
[1769379793890,0.17861,2802.6,2801.1,3.71565369]
[1769379794084,31.67126892,2803.3,2801.6,3.71565369]
[1769379794085,2.29968361,2803.3,2801.6,3.71565369]
[1769379794295,0.17857,2803.2,2801.6,3.71565369]
[1769379794891,0.18142816,2803.2,2801.6,3.71816867]
[1769379795096,0.00285816,2803.2,2802.1,3.71565369]
[1769379798398,0.18142816,2803.2,2802.1,3.71565369]
[1769379799997,0.00285816,2803.2,2802.1,3.71565369]
[1769379804900,0.00285816,2803.2,2802.1,7.53965369]
[1769379805097,0.17854,2803.7,2802.2,3.80913765]
[1769379806200,0.18221374,2803.7,2802.2,3.80913765]
[1769379806504,0.18221374,2803.7,2802.2,5.14596694]
[1769379806694,0.18221374,2803.7,2802.3,3.80913765]
[1769379809201,0.00367374,2803.7,2802.3,3.80913765]
[1769379810607,0.17856,2803.3,2802.3,3.80913765]
[1769379815614,0.1785,2804.3,2803.3,3.55086386]
[1769379816519,0.18281414,2804.3,2803.3,3.55086386]
[1769379818317,0.00431414,2804.3,2803.3,3.55086386]
[1769379819020,0.17845,2805.0,2803.3,3.55086386]
[1769379820019,0.18188298,2805.0,2803.3,3.55086386]
[1769379824119,0.00343298,2805.0,2803.3,3.55086386]
[1769379828321,0.00343298,2805.0,2803.5,3.57752952]
[1769379829022,0.17847,2804.8,2803.5,3.57752952]
[1769379832330,0.00343298,2805.0,2803.5,3.57752952]
[1769379834130,0.00343298,2805.0,2803.5,7.40152952]
[1769379834331,0.00343298,2805.0,2803.6,3.55525416]
[1769379834528,0.00343298,2805.0,2803.6,3.55810802]
[1769379837536,0.17847,2804.7,2803.6,3.55810802]
[1769379837844,0.56248191,2804.5,2803.0,2.92]
[1769379838131,0.17853,2803.9,2802.7,3.56833878]
[1769379838831,0.17853,2803.9,2802.7,3.5715262]
[1769379839927,0.67154155,2804.2,2802.7,0.00318742]
[1769379840129,0.17855,2803.5,2802.7,0.00318742]
[1769379842239,0.17856,2803.3,2802.3,2.826]
[1769379842540,0.17856,2803.3,2801.1,1.59954566]
[1769379842541,0.1786,2802.7,2801.2,3.53402172]
[1769379842734,0.17864,2802.1,2801.1,1.59954566]
[1769379842929,0.17864,2802.1,2801.1,5.13356738]
[1769379843127,0.18178895,2802.1,2801.1,5.13758819]
[1769379844330,0.00314895,2802.1,2801.2,3.59822997]
[1769379852643,0.17864,2802.0,2801.1,1.60356647]
[1769379852842,0.17868,2801.5,2801.1,0.00402081]
[1769379853042,0.17868,2801.5,2800.4,3.59822997]
[1769379853436,0.68833765,2802.1,2800.4,3.59822997]
[1769379853635,0.17868,2801.5,2800.4,3.59822997]
[1769379854032,0.17868,2801.5,2800.4,3.60085314]
[1769379855045,0.68833765,2802.1,2800.4,3.60085314]
[1769379856242,0.17867,2801.6,2800.4,3.60085314]
[1769379856442,0.17868,2801.5,2800.4,3.60085314]
[1769379856638,0.68585681,2801.5,2800.4,0.00262317]
[1769379856843,0.17872,2800.9,2799.6,3.50852554]
[1769379857842,0.17872,2800.9,2799.6,3.51172786]
[1769379859543,7.05324041,2802.0,2799.6,3.51172786]
[1769379859851,0.17869,2801.3,2799.6,3.51172786]
[1769379862646,0.00314895,2802.1,2799.6,3.51172786]
[1769379862851,0.17866,2801.8,2800.2,3.50435256]
[1769379863046,0.00314895,2802.1,2800.3,3.50435256]
[1769379863752,0.18178895,2802.1,2800.3,3.50435256]
[1769379865148,0.18178895,2802.1,2800.3,3.68310256]
[1769379868248,0.00314895,2802.1,2800.3,3.68310256]
[1769379871756,0.00314895,2802.1,2800.5,3.5173374]
[1769379872253,0.00314895,2802.1,2800.5,3.6960774]
[1769379872659,14.91314413,2802.7,2800.9,3.5173374]
[1769379873661,14.91683695,2802.7,2800.9,3.5173374]
[1769379873963,14.91683695,2802.7,2800.9,3.6960474]
[1769379874156,0.00369282,2802.7,2800.9,3.6960474]
[1769379877359,0.00369282,2802.7,2801.0,0.1787]
[1769379877663,0.00369282,2802.7,2801.1,3.69678199]
[1769379878863,0.00369282,2802.7,2801.3,3.51932267]
[1769379879664,0.00369282,2802.7,2801.6,3.51293757]
[1769379879965,0.00369282,2802.7,2801.6,3.5154799]
[1769379882764,0.17861,2802.5,2801.6,0.00254233]
[1769379883069,0.85184369,2802.4,2800.8,3.51448992]
[1769379884066,0.85184369,2802.4,2800.8,3.51874489]
[1769379886367,0.17863,2802.3,2800.8,3.51874489]
[1769379887366,2.79377919,2802.4,2800.8,0.00425497]
[1769379887570,1.27357652,2802.1,2800.8,0.00425497]
[1769379888574,0.17865,2801.9,2800.8,0.00425497]
[1769379890176,1.29914342,2801.8,2800.3,2.094]
[1769379890474,1.29488845,2801.6,2800.0,7.04859581]
[1769379890677,0.17869,2801.3,2800.0,7.04859581]
[1769379891270,0.1787,2801.1,2800.0,7.05121958]
[1769379892872,0.17872,2800.9,2800.0,7.05121958]
[1769379893171,0.17872,2800.9,2800.0,3.57362377]
[1769379893381,1.29624749,2801.2,2800.0,0.00262377]
[1769379893678,0.17869,2801.3,2800.0,0.00262377]
[1769379894176,0.1787,2801.2,2800.0,0.00262377]
[1769379895171,0.1787,2801.1,2800.0,0.00262377]
[1769379898078,1.35202623,2801.6,2800.0,3.48021958]
[1769379899477,0.17868,2801.4,2800.0,3.48021958]
[1769379899981,6.36,2801.9,2800.5,3.47759581]
[1769379899982,0.17866,2801.8,2800.5,3.47759581]
[1769379900582,0.17862,2802.4,2800.5,3.47759581]
[1769379900785,0.17862,2802.4,2800.6,3.47759581]
[1769379901082,0.17863,2802.2,2800.6,3.47759581]
[1769379903285,1.34725627,2802.6,2800.6,3.47759581]
[1769379903481,1.35907811,2802.2,2800.2,7.40494961]
[1769379903681,0.17867,2801.7,2800.2,7.40494961]
[1769379904782,0.17867,2801.7,2800.3,3.83294961]
[1769379906182,0.17863,2802.2,2800.5,3.83294961]
[1769379907683,0.00369282,2802.7,2801.0,3.83294961]
[1769379909185,0.18229282,2802.7,2801.0,3.83294961]
[1769379911392,0.18229282,2802.7,2801.1,3.83294961]
[1769379911894,0.18229282,2802.7,2801.5,3.83294961]
[1769379912282,1.37355463,2802.7,2801.0,6.53894961]
[1769379912491,1.37355463,2802.7,2800.6,11.49324932]
[1769379912693,0.17866,2801.7,2800.2,24.48961929]
[1769379912889,0.17867,2801.6,2800.2,18.08824932]
[1769379913090,0.17868,2801.4,2800.2,6.595]
[1769379913593,0.17869,2801.3,2800.2,6.595]
[1769379914681,0.17869,2801.3,2800.2,3.572]
[1769379915792,0.17869,2801.3,2800.2,7.11320384]
[1769379916193,0.17865,2801.9,2800.3,3.54120384]
[1769379916394,0.17865,2801.9,2800.5,3.54120384]
[1769379916595,0.17865,2801.9,2800.5,8.87226933]
[1769379917494,0.17865,2801.9,2800.5,3.54120384]
[1769379918696,1.39154054,2802.4,2800.5,2.95025384]
[1769379919000,1.39154054,2802.4,2800.2,8.90306549]
[1769379919001,1.99072465,2802.0,2800.2,8.90306549]
[1769379919201,0.17867,2801.6,2800.2,8.90306549]
[1769379919796,0.17868,2801.5,2800.1,5.33106549]
[1769379922304,0.17868,2801.5,2800.1,8.87226933]
[1769379923398,0.17868,2801.5,2800.2,3.54120384]
[1769379924306,0.17868,2801.5,2800.4,3.54120384]
[1769379924606,1.99072465,2802.0,2800.4,3.54120384]
[1769379924607,0.17865,2802.0,2800.5,3.54120384]
[1769379924808,0.17865,2801.9,2800.5,3.54120384]
[1769379928416,0.17866,2801.8,2800.5,3.54120384]
[1769379930521,2.09495504,2801.9,2800.1,3.54120384]
[1769379930724,0.17868,2801.5,2800.1,3.54120384]
[1769379932425,0.17868,2801.5,2800.2,3.54120384]
[1769379933424,0.17868,2801.5,2800.3,3.73398258]
[1769379933918,2.54470764,2802.2,2800.3,3.31212258]
[1769379934123,0.1787,2801.2,2800.0,0.00262377]
[1769379934521,0.17871,2801.1,2800.0,5.33368926]
[1769379934723,0.17871,2801.1,2800.0,0.00262377]
[1769379934919,0.17872,2800.9,2800.0,0.00262377]
[1769379935618,0.17873,2800.6,2800.0,0.00262377]
[1769379935825,0.18239777,2800.6,2800.0,0.00262377]
[1769379936922,0.1787,2801.2,2800.0,0.00262377]
[1769379937315,0.1787,2801.2,2800.0,3.73660635]
[1769379937521,2.55785488,2802.1,2800.1,3.73398258]
[1769379937726,0.17867,2801.6,2800.1,3.73398258]
[1769379938026,0.18262112,2801.6,2800.1,3.73398258]
[1769379939119,0.17868,2801.5,2800.1,3.73398258]
[1769379941326,0.17868,2801.5,2800.1,9.06504807]
[1769379941724,0.17868,2801.5,2800.1,3.73398258]
[1769379942330,0.17868,2801.5,2800.1,9.06504807]
[1769379944033,0.17868,2801.5,2800.3,5.33106549]
[1769379945231,0.17868,2801.4,2800.3,5.33106549]
[1769379945531,0.17868,2801.4,2800.1,3.73398258]
[1769379946626,0.00395112,2801.6,2800.5,3.73398258]
[1769379946835,0.17865,2802.0,2800.7,3.73398258]
[1769379947030,0.17861,2802.6,2800.9,3.73398258]
[1769379947230,0.17861,2802.6,2801.1,3.73398258]
[1769379947532,0.17861,2802.6,2801.2,3.73398258]
[1769379947934,0.18228645,2802.6,2801.2,3.73398258]
[1769379948934,9.20402571,2803.2,2801.2,3.73398258]
[1769379949233,0.17858,2803.0,2801.2,3.73398258]
[1769379949637,0.17854,2803.6,2801.3,3.73398258]
[1769379950342,0.18125256,2803.6,2801.4,3.73398258]
[1769379950837,0.18125256,2803.6,2801.4,10.13535255]
[1769379951038,0.18125256,2803.6,2801.7,3.73398258]
[1769379956235,0.00271256,2803.6,2801.7,3.91264258]
[1769379959045,0.00271256,2803.6,2801.8,3.571]
[1769379959239,0.00271256,2803.6,2801.9,3.73398258]
[1769379959442,0.00271256,2803.6,2801.9,3.91263258]
[1769379962036,0.1785,2804.2,2802.1,1.33640671]
[1769379962241,0.1785,2804.2,2802.3,3.73398258]
[1769379962635,0.1785,2804.2,2802.3,3.91260258]
[1769379963138,0.00284961,2804.2,2802.5,4.00740039]
[1769379966141,0.00284961,2804.2,2802.5,3.82879039]
[1769379968344,0.00284961,2804.2,2802.5,4.00740039]
[1769379974551,0.00284961,2804.2,2802.7,3.82879039]
[1769379976458,0.00284961,2804.2,2802.9,3.60753105]
[1769379978447,0.00284961,2804.2,2802.9,8.91723908]
[1769379979152,2.74954362,2804.0,2802.4,12.97000774]
[1769379979357,2.92806362,2804.0,2802.4,16.57753879]
[1769379979650,2.75194243,2803.8,2802.4,5.30970803]
[1769379979850,2.11886711,2804.2,2802.3,0.00280046]
[1769379979851,2.75194243,2803.1,2802.3,0.00280046]
[1769379980044,2.75194243,2803.1,2801.6,8.38370803]
[1769379980244,2.75194243,2803.1,2801.6,3.074]
[1769379980450,2.74914197,2803.5,2802.0,3.60753105]
[1769379981150,2.74914197,2803.5,2802.0,3.61125778]
[1769379981653,2.92769197,2803.5,2802.0,3.61125778]
[1769379981857,2.92769197,2803.5,2802.0,0.00372673]
[1769379982348,2.9185633,2803.0,2802.0,0.00372673]
[1769379982553,2.73625657,2802.6,2801.2,8.87870803]
[1769379982750,2.73625657,2802.6,2801.2,3.569]